bitfinex/quotes_BTCUSD_20240915
["timestamp","ask_amount","ask_price","bid_price","bid_amount"]
[1726425646552,0.02404416,59916.0,59912.0,0.023]
[1726425646796,0.166896,59918.0,59912.0,0.023]
[1726425647025,0.02404413,59915.0,59912.0,0.189911]
[1726425647256,0.02404046,59914.0,59913.0,0.166908]
[1726425647722,0.002,59917.0,59913.0,0.166908]
[1726425647950,0.02403341,59914.0,59913.0,0.166908]
[1726425648178,0.001,59916.0,59913.0,0.166908]
[1726425648415,0.002,59917.0,59913.0,0.166908]
[1726425648644,0.02403466,59916.0,59913.0,0.166908]
[1726425649124,0.003,59918.0,59913.0,0.001]
[1726425649327,0.02403507,59915.0,59913.0,0.001]
[1726425649557,0.002,59917.0,59914.0,0.166904]
[1726425650125,0.002,59917.0,59913.0,0.001]
[1726425650361,0.002,59917.0,59914.0,0.166904]
[1726425650600,0.02403977,59916.0,59913.0,0.333814]
[1726425650822,0.002,59917.0,59916.0,0.1669]
[1726425651021,0.002,59917.0,59916.0,0.52703719]
[1726425651223,0.001648,59931.0,59923.0,0.333759]
[1726425651551,0.001648,59931.0,59926.0,0.33374]
[1726425651793,0.001648,59931.0,59930.0,0.834305]
[1726425651994,0.001648,59931.0,59930.0,0.5126033]
[1726425652134,0.001648,59931.0,59930.0,0.8463253]
[1726425652338,0.02618232,59947.0,59944.0,0.166821]
[1726425652547,1.00119309,59951.0,59949.0,0.166808]
[1726425652753,0.1819,59957.0,59946.0,0.166815]
[1726425652973,0.166804,59951.0,59945.0,0.166819]
[1726425653194,0.1819,59957.0,59940.0,0.03341]
[1726425653406,0.1819,59957.0,59946.0,0.166816]
[1726425653628,0.166804,59951.0,59944.0,0.166821]
[1726425653822,0.166804,59951.0,59945.0,0.166819]
[1726425654031,0.1939,59957.0,59942.0,0.333654]
[1726425654261,0.02586462,59950.0,59945.0,0.166818]
[1726425654464,0.02586462,59950.0,59941.0,0.05641]
[1726425654736,0.02586462,59950.0,59949.0,0.166808]
[1726425655093,0.02586462,59950.0,59945.0,0.166819]
[1726425655327,0.166789,59956.0,59949.0,0.166807]
[1726425655482,0.02586832,59949.0,59948.0,0.500433]
[1726425655707,0.166792,59955.0,59948.0,0.166811]
[1726425656205,0.02588654,59954.0,59948.0,0.166811]
[1726425656430,0.02588654,59954.0,59949.0,0.166807]
[1726425656683,0.19268154,59954.0,59949.0,0.166807]
[1726425657220,0.166798,59953.0,59949.0,0.004]
[1726425657448,0.333602,59952.0,59938.0,0.03341]
[1726425657670,0.333657,59942.0,59938.0,0.03341]
[1726425657926,0.166835,59940.0,59933.0,0.200261]
[1726425658165,0.166835,59940.0,59933.0,0.03341]
[1726425658166,0.16684,59938.0,59933.0,0.03341]
[1726425658427,0.52654831,59943.0,59933.0,0.367112]
[1726425658428,0.02586576,59939.0,59933.0,0.367112]
[1726425658676,0.02586434,59938.0,59937.0,0.166841]
[1726425659194,0.166823,59944.0,59937.0,0.166841]
[1726425659438,0.19289331,59947.0,59941.0,0.166829]
[1726425659439,0.166814,59947.0,59941.0,0.166829]
[1726425659683,0.333622,59948.0,59940.0,0.166832]
[1726425659926,0.166818,59946.0,59940.0,0.166832]
[1726425660147,0.001648,59953.0,59942.0,0.023]
[1726425660383,0.001648,59953.0,59950.0,0.166804]
[1726425660608,0.19289331,59951.0,59933.0,0.01]
[1726425660877,0.52654631,59943.0,59933.0,0.01]
[1726425661112,0.16684,59938.0,59933.0,0.01]
[1726425661333,0.001648,59953.0,59933.0,0.01]
[1726425661334,0.333641,59945.0,59933.0,0.343704]
[1726425661572,0.166837,59939.0,59933.0,0.176852]
[1726425661821,0.166839,59938.0,59933.0,0.173852]
[1726425662069,0.166839,59938.0,59927.0,0.03341]
[1726425662070,0.02585073,59938.0,59931.0,0.3370517]
[1726425662296,0.02585073,59938.0,59935.0,0.166846]
[1726425662525,0.33364,59945.0,59926.0,0.333742]
[1726425662760,0.02584931,59937.0,59936.0,0.500531]
[1726425663028,0.335247,59953.0,59922.0,0.22289331]
[1726425663029,0.001,59939.0,59938.0,0.166839]
[1726425663491,0.166821,59945.0,59939.0,0.166835]
[1726425663729,0.166821,59945.0,59940.0,0.166833]
[1726425663948,0.166809,59949.0,59939.0,0.33367]
[1726425664172,0.166815,59947.0,59941.0,0.16683]
[1726425664430,0.19289331,59951.0,59943.0,0.166823]
[1726425664661,0.19289331,59951.0,59946.0,0.166815]
[1726425664662,0.166803,59951.0,59946.0,0.166815]
[1726425664880,0.021,59945.0,59944.0,0.50380215]
[1726425665100,0.021,59945.0,59944.0,0.83411]
[1726425665329,0.001648,59953.0,59944.0,0.333644]
[1726425665549,0.001648,59953.0,59937.0,0.333682]
[1726425665550,0.014,59951.0,59945.0,0.0033361]
[1726425665857,0.014,59951.0,59950.0,0.500416]
[1726425666077,0.001648,59953.0,59952.0,0.1668]
[1726425666306,0.001648,59953.0,59952.0,0.834]
[1726425666992,0.001648,59953.0,59952.0,1.1676]
[1726425668143,0.001648,59953.0,59952.0,0.5004]
[1726425668374,0.001648,59953.0,59952.0,0.5034]
[1726425668591,0.001648,59953.0,59952.0,0.5004]
[1726425668852,0.001648,59953.0,59952.0,0.834]
[1726425669081,0.001648,59953.0,59952.0,0.836]
[1726425669539,0.001648,59953.0,59952.0,0.834]
[1726425669764,0.001648,59953.0,59952.0,0.835]
[1726425669973,0.001648,59953.0,59952.0,0.839]
[1726425670191,0.001648,59953.0,59952.0,0.835]
[1726425670671,0.001648,59953.0,59952.0,1.5282]
[1726425670903,0.25023146,59972.0,59961.0,0.023]
[1726425671137,0.35964731,59969.0,59960.0,0.333553]
[1726425671347,0.35964731,59969.0,59963.0,0.166767]
[1726425671348,0.19289331,59969.0,59963.0,0.166767]
[1726425671571,0.35964731,59969.0,59963.0,0.166767]
[1726425671792,0.19289331,59969.0,59964.0,0.166766]
[1726425672052,0.19289331,59969.0,59961.0,0.333547]
[1726425672297,0.19289331,59969.0,59966.0,0.166759]
[1726425672766,0.20389331,59969.0,59966.0,0.166759]
[1726425673026,0.20389331,59969.0,59952.0,0.333599]
[1726425673234,0.20389331,59969.0,59951.0,0.4665]
[1726425673235,0.19289331,59960.0,59951.0,0.4665]
[1726425673487,0.19289331,59960.0,59947.0,0.367034]
[1726425673698,0.333533,59965.0,59940.0,0.4665]
[1726425673699,0.35968331,59956.0,59950.0,0.166805]
[1726425674153,0.35968331,59956.0,59948.0,0.333621]
[1726425674154,0.19289331,59956.0,59948.0,0.333621]
[1726425674398,0.19289331,59956.0,59951.0,0.166801]
[1726425674662,0.19289331,59956.0,59940.0,0.4665]
[1726425674891,0.19289331,59956.0,59953.0,0.166796]
[1726425675370,0.1881,59959.0,59956.0,0.166786]
[1726425676082,0.335493,59972.0,59962.0,0.166769]
[1726425676083,0.1881,59967.0,59962.0,0.166769]
[1726425676338,0.333525,59966.0,59951.0,0.023]
[1726425676575,0.35966131,59964.0,59959.0,0.16678]
[1726425676793,0.33354,59963.0,59953.0,0.333593]
[1726425677023,0.166776,59961.0,59956.0,0.166788]
[1726425677255,0.33354,59963.0,59956.0,0.166788]
[1726425677256,0.500311,59963.0,59956.0,0.166788]
[1726425677477,0.19289331,59964.0,59953.0,0.333592]
[1726425677478,0.35966031,59964.0,59958.0,0.166781]
[1726425677696,0.001,59959.0,59958.0,0.166781]
[1726425677917,0.001,59959.0,59951.0,0.023]
[1726425678146,0.001,59959.0,59947.0,0.333623]
[1726425678147,0.36466031,59964.0,59958.0,0.166783]
[1726425678396,0.003,59961.0,59958.0,0.166783]
[1726425678881,0.35966031,59964.0,59958.0,0.166783]
[1726425679113,0.35966031,59964.0,59959.0,0.16678]
[1726425679356,0.166767,59964.0,59960.0,0.166777]
[1726425679611,0.19293787,59963.0,59958.0,0.166782]
[1726425679861,0.19293787,59963.0,59952.0,0.333597]
[1726425679862,0.02616787,59963.0,59957.0,0.166785]
[1726425680073,0.02616787,59963.0,59958.0,0.166782]
[1726425680074,0.19293787,59963.0,59958.0,0.166782]
[1726425680293,0.02616787,59963.0,59952.0,0.333598]
[1726425680513,0.21906118,59963.0,59952.0,0.333598]
[1726425680753,0.21906118,59963.0,59949.0,0.333616]
[1726425681017,0.166784,59958.0,59952.0,0.166797]
[1726425681262,0.333548,59962.0,59951.0,0.333605]
[1726425681473,0.16678,59959.0,59954.0,0.166794]
[1726425681697,0.16678,59959.0,59955.0,0.166791]
[1726425682432,0.16678,59959.0,59952.0,0.333599]
[1726425682433,0.001648,59961.0,59952.0,0.001]
[1726425682656,0.001648,59961.0,59958.0,0.166781]
[1726425682874,0.001648,59961.0,59956.0,0.333577]
[1726425683089,0.001648,59961.0,59957.0,0.166785]
[1726425683321,0.001648,59961.0,59958.0,0.166781]
[1726425683596,0.001648,59961.0,59960.0,0.166777]
[1726425683811,0.001648,59961.0,59960.0,0.500332]
[1726425684689,0.003648,59961.0,59960.0,0.500332]
[1726425684982,0.006648,59961.0,59960.0,0.500332]
[1726425685229,0.004648,59961.0,59960.0,0.500332]
[1726425685578,0.006648,59961.0,59960.0,0.500332]
[1726425685810,0.006648,59961.0,59960.0,0.833887]
[1726425686054,0.006648,59961.0,59960.0,0.500332]
[1726425689143,0.006648,59961.0,59960.0,0.166777]
[1726425689378,0.006648,59961.0,59952.0,0.3336]
[1726425689379,0.173423,59961.0,59956.0,0.166786]
[1726425689600,0.173423,59961.0,59955.0,0.333581]
[1726425689601,0.166781,59959.0,59955.0,0.166791]
[1726425689847,0.166781,59959.0,59954.0,0.166792]
[1726425690330,0.166781,59959.0,59952.0,0.166798]
[1726425690331,0.19289331,59958.0,59952.0,0.166798]
[1726425690578,0.166786,59957.0,59952.0,0.166798]
[1726425691518,0.334562,59959.0,59951.0,0.333603]
[1726425691759,0.166787,59957.0,59952.0,0.169799]
[1726425692657,0.166783,59958.0,59953.0,0.166796]
[1726425692875,0.166778,59960.0,59952.0,0.003]
[1726425693109,0.001648,59961.0,59953.0,0.166796]
[1726425693352,0.166784,59958.0,59954.0,0.166794]
[1726425693798,0.001648,59961.0,59955.0,0.333582]
[1726425694025,0.001648,59961.0,59949.0,0.333614]
[1726425694261,0.001648,59961.0,59958.0,0.166781]
[1726425694502,0.006648,59961.0,59958.0,0.166781]
[1726425695191,0.006648,59961.0,59956.0,0.333575]
[1726425695192,0.008648,59961.0,59956.0,0.333575]
[1726425695423,0.005648,59961.0,59956.0,0.333575]
[1726425695669,0.005648,59961.0,59958.0,0.166781]
[1726425696385,0.001648,59961.0,59958.0,0.166781]
[1726425696623,0.001648,59961.0,59956.0,0.333575]
[1726425696624,0.003648,59961.0,59959.0,0.16678]
[1726425696845,0.006648,59961.0,59959.0,0.16678]
[1726425697511,0.001648,59961.0,59959.0,0.16678]
[1726425697735,0.004648,59961.0,59959.0,0.16678]
[1726425698176,0.003648,59961.0,59959.0,0.16678]
[1726425698605,0.006648,59961.0,59959.0,0.16678]
[1726425699055,0.006648,59961.0,59957.0,0.166784]
[1726425699763,0.006648,59961.0,59958.0,0.166782]
[1726425699994,0.001648,59961.0,59958.0,0.166782]
[1726425700485,0.006648,59961.0,59958.0,0.166782]
[1726425700715,0.006648,59961.0,59960.0,0.166777]
[1726425700716,0.004648,59961.0,59960.0,0.166777]
[1726425700928,0.003648,59961.0,59960.0,0.166777]
[1726425701165,0.006648,59961.0,59960.0,0.166777]
[1726425701613,0.003648,59961.0,59960.0,0.166777]
[1726425701824,0.001648,59961.0,59960.0,0.166777]
[1726425702082,0.004648,59961.0,59960.0,0.166777]
[1726425703030,0.004648,59961.0,59956.0,0.333575]
[1726425703031,0.004648,59961.0,59958.0,0.166781]
[1726425703271,0.006648,59961.0,59958.0,0.166781]
[1726425703735,0.003648,59961.0,59958.0,0.166781]
[1726425704207,0.166781,59959.0,59954.0,0.166791]
[1726425704452,0.173424,59961.0,59957.0,0.166786]
[1726425704973,0.173424,59961.0,59952.0,0.000823]
[1726425704974,0.333573,59957.0,59952.0,0.000823]
[1726425705290,0.35969031,59953.0,59952.0,0.000823]
[1726425705530,0.19289331,59944.0,59940.0,0.4665]
[1726425705795,0.166837,59939.0,59934.0,0.166848]
[1726425706070,0.19289331,59939.0,59931.0,0.000824]
[1726425706324,0.02092237,59938.0,59935.0,0.166847]
[1726425706585,0.02092237,59938.0,59932.0,0.33371]
[1726425706840,0.02092237,59938.0,59931.0,0.000824]
[1726425707071,0.166832,59941.0,59936.0,0.166844]
[1726425707309,0.166832,59941.0,59933.0,0.333705]
[1726425707310,0.02092136,59937.0,59934.0,0.166848]
[1726425707540,0.02092468,59940.0,59935.0,0.003]
[1726425707771,0.166832,59941.0,59936.0,0.166843]
[1726425708698,0.333638,59946.0,59932.0,0.023]
[1726425708699,0.166817,59946.0,59932.0,0.023]
[1726425708929,0.02189975,59940.0,59939.0,0.166836]
[1726425709164,0.001,59940.0,59939.0,0.166836]
[1726425709406,0.02388046,59940.0,59939.0,0.166836]
[1726425709629,0.001,59940.0,59939.0,0.166836]
[1726425709857,0.02388046,59940.0,59939.0,0.500508]
[1726425710080,0.001,59940.0,59939.0,0.83418]
[1726425710306,0.02617567,59947.0,59939.0,0.333672]
[1726425710598,0.19299067,59947.0,59942.0,0.166826]
[1726425710816,0.02288664,59946.0,59942.0,0.166826]
[1726425712178,0.02988664,59946.0,59942.0,0.166826]
[1726425712880,0.02988664,59946.0,59945.0,0.166819]
[1726425713363,0.02988664,59946.0,59942.0,0.33365]
[1726425713600,0.02988664,59946.0,59944.0,0.166822]
[1726425713804,0.02888664,59946.0,59944.0,0.166822]
[1726425714256,0.02888664,59946.0,59945.0,0.001]
[1726425714257,0.03488664,59946.0,59945.0,0.001]
[1726425714520,0.04188664,59946.0,59945.0,0.001]
[1726425714727,0.02988664,59946.0,59944.0,0.166822]
[1726425714943,0.02888664,59946.0,59944.0,0.167822]
[1726425715161,0.03588664,59946.0,59944.0,0.167822]
[1726425715379,0.03588664,59946.0,59945.0,0.166819]
[1726425715839,0.013,59946.0,59945.0,0.166819]
[1726425716278,0.02987667,59946.0,59945.0,0.166819]
[1726425716506,0.03587667,59946.0,59945.0,0.167819]
[1726425716731,0.02887667,59946.0,59945.0,0.167819]
[1726425716951,0.03587667,59946.0,59945.0,0.167819]
[1726425717676,0.03587667,59946.0,59945.0,0.501458]
[1726425717894,0.03587667,59946.0,59945.0,0.167819]
[1726425718102,0.013,59946.0,59945.0,0.501458]
[1726425718541,0.03587792,59946.0,59945.0,0.501458]
[1726425718781,0.013,59946.0,59945.0,0.501458]
[1726425719235,0.03587792,59946.0,59945.0,0.501458]
[1726425719457,0.013,59946.0,59945.0,0.501458]
[1726425719696,0.03587792,59946.0,59945.0,0.501458]
[1726425720590,0.03587792,59946.0,59945.0,0.167819]
[1726425720813,0.013,59946.0,59945.0,0.167819]
[1726425721075,0.03587792,59946.0,59945.0,0.501458]
[1726425721262,0.013,59946.0,59945.0,0.501458]
[1726425721482,0.013,59946.0,59945.0,0.167819]
[1726425721715,0.03587792,59946.0,59945.0,0.167819]
[1726425721959,0.013,59946.0,59945.0,0.167819]
[1726425722170,0.03587792,59946.0,59945.0,0.167819]
[1726425722414,0.013,59946.0,59945.0,0.001]
[1726425722630,0.03587792,59946.0,59945.0,0.001]
[1726425722845,0.013,59946.0,59945.0,0.001]
[1726425723078,0.03587792,59946.0,59945.0,0.001]
[1726425723297,0.179816,59946.0,59945.0,0.001]
[1726425723522,0.86995992,59946.0,59945.0,0.001]
[1726425723797,0.166841,59937.0,59936.0,0.000823]
[1726425724033,0.500524,59937.0,59936.0,0.000823]
[1726425724473,0.52341969,59937.0,59936.0,0.000823]
[1726425724711,0.85710269,59937.0,59936.0,0.000823]
[1726425724970,0.52341969,59937.0,59936.0,0.000823]
[1726425725193,0.85710269,59937.0,59936.0,0.004823]
[1726425725434,0.52341969,59937.0,59936.0,0.004823]
[1726425726208,0.85910269,59937.0,59936.0,0.004823]
[1726425726425,0.85710269,59937.0,59936.0,0.004823]
[1726425726858,0.52741969,59937.0,59936.0,0.004823]
[1726425727108,0.52741969,59937.0,59936.0,0.000823]
[1726425727109,0.86110269,59937.0,59936.0,0.000823]
[1726425727320,0.85910269,59937.0,59936.0,0.000823]
[1726425727572,0.52341969,59937.0,59936.0,0.000823]
[1726425727799,0.53641969,59937.0,59936.0,0.000823]
[1726425728012,0.54841969,59937.0,59936.0,0.001823]
[1726425728232,0.54841969,59937.0,59936.0,0.000823]
[1726425728233,0.52341969,59937.0,59936.0,0.000823]
[1726425728449,0.52341969,59937.0,59936.0,0.001823]
[1726425728668,0.53541969,59937.0,59936.0,0.001823]
[1726425728894,0.53541969,59937.0,59936.0,0.000823]
[1726425729114,0.86910269,59937.0,59936.0,0.000823]
[1726425729344,0.53541969,59937.0,59936.0,0.000823]
[1726425729561,0.54841969,59937.0,59936.0,0.000823]
[1726425730014,0.20173669,59937.0,59936.0,0.000823]
[1726425730251,0.21473669,59937.0,59936.0,0.000823]
[1726425730471,0.54841969,59937.0,59936.0,0.000823]
[1726425730675,0.56041969,59937.0,59936.0,0.001823]
[1726425730882,0.89410269,59937.0,59936.0,0.001823]
[1726425731092,1.52458569,59937.0,59936.0,0.000823]
[1726425731326,1.51158569,59937.0,59936.0,0.000823]
[1726425731487,1.52158569,59937.0,59936.0,0.001823]
[1726425731696,1.51158569,59937.0,59936.0,0.000823]
[1726425731906,1.17790269,59937.0,59936.0,0.000823]
[1726425732061,1.18990269,59937.0,59936.0,0.001823]
[1726425732495,0.51053669,59937.0,59936.0,0.000823]
[1726425732963,0.52253669,59937.0,59936.0,0.000823]
[1726425733404,0.51053669,59937.0,59936.0,0.000823]
[1726425733620,0.52353669,59937.0,59936.0,0.000823]
[1726425733843,0.35669569,59937.0,59936.0,0.000823]
[1726425734082,0.52353669,59937.0,59936.0,0.000823]
[1726425734312,0.53553669,59937.0,59936.0,0.001823]
[1726425737690,0.86921969,59937.0,59936.0,0.001823]
[1726425738576,0.53553669,59937.0,59936.0,0.001823]
[1726425742980,0.52253669,59937.0,59936.0,0.001823]
[1726425743229,0.53353669,59937.0,59936.0,0.001823]
[1726425743693,0.52253669,59937.0,59936.0,0.001823]
[1726425743958,0.51653669,59937.0,59936.0,0.000823]
[1726425744201,0.52153669,59937.0,59936.0,0.000823]
[1726425748377,0.85521969,59937.0,59936.0,0.000823]
[1726425749697,0.52153669,59937.0,59936.0,0.000823]
[1726425749926,0.85521969,59937.0,59936.0,0.000823]
[1726425752031,0.52153669,59937.0,59936.0,0.000823]
[1726425752483,0.20073669,59937.0,59936.0,0.000823]
[1726425754615,0.53441969,59937.0,59936.0,0.000823]
[1726425756723,0.03389569,59937.0,59936.0,0.000823]
[1726425757508,0.20073669,59937.0,59936.0,0.000823]
[1726425758454,0.03189569,59937.0,59936.0,0.000823]
[1726425758700,0.19873669,59937.0,59936.0,0.000823]
[1726425758945,0.03189569,59937.0,59936.0,0.000823]
[1726425760335,0.19873669,59937.0,59936.0,0.000823]
[1726425760585,0.03189569,59937.0,59936.0,0.167667]
[1726425761113,0.011,59937.0,59936.0,0.167667]
[1726425761363,0.03700016,59937.0,59936.0,0.501356]
[1726425761883,0.011,59937.0,59936.0,0.501356]
[1726425763543,0.011,59937.0,59936.0,0.167667]
[1726425763792,0.03700015,59937.0,59936.0,0.167667]
[1726425764025,0.011,59937.0,59936.0,0.167667]
[1726425764268,0.03700015,59937.0,59936.0,0.167667]
[1726425764511,0.011,59937.0,59936.0,0.167667]
[1726425765008,0.03700015,59937.0,59936.0,0.167667]
[1726425765255,0.011,59937.0,59936.0,0.167667]
[1726425765512,0.03700015,59937.0,59936.0,0.167667]
[1726425765752,0.011,59937.0,59936.0,0.167667]
[1726425766037,0.20384115,59937.0,59936.0,0.000823]
[1726425766293,1.36029,59937.0,59936.0,0.000823]
[1726425766529,1.38629662,59937.0,59936.0,0.000823]
[1726425768401,1.43624937,59937.0,59936.0,0.000823]
[1726425768875,1.46242798,59937.0,59936.0,0.000823]
[1726425769153,1.46251511,59937.0,59936.0,0.000823]
[1726425771068,1.46451511,59937.0,59936.0,0.000823]
[1726425771316,1.46251511,59937.0,59936.0,0.000823]
[1726425776679,1.12883211,59937.0,59936.0,0.000823]
[1726425777557,1.07879223,59937.0,59936.0,0.000823]
[1726425778021,1.20536207,59937.0,59936.0,0.000823]
[1726425778245,1.28041191,59937.0,59936.0,0.000823]
[1726425779849,1.28205473,59937.0,59936.0,0.000823]
[1726425780550,1.20700807,59937.0,59936.0,0.000823]
[1726425780767,1.28205473,59937.0,59936.0,0.000823]
[1726425781225,1.20700807,59937.0,59936.0,0.000823]
[1726425781448,1.28205473,59937.0,59936.0,0.000823]
[1726425781679,1.28205486,59937.0,59936.0,0.000823]
[1726425782121,1.20700807,59937.0,59936.0,0.000823]
[1726425782585,1.25703781,59937.0,59936.0,0.000823]
[1726425782850,1.25703786,59937.0,59936.0,0.000823]
[1726425783996,1.20700807,59937.0,59936.0,0.000823]
[1726425785853,1.25703494,59937.0,59936.0,0.000823]
[1726425786339,1.20700807,59937.0,59936.0,0.000823]
[1726425787702,1.25703067,59937.0,59936.0,0.000823]
[1726425787975,1.25703034,59937.0,59936.0,0.000823]
[1726425789364,0.23167223,59937.0,59936.0,0.000823]
[1726425790568,0.06483123,59937.0,59936.0,0.000823]
[1726425791041,0.03865262,59937.0,59936.0,0.167667]
[1726425792367,0.03865262,59937.0,59936.0,0.501356]
[1726425794095,0.03865262,59937.0,59936.0,0.835045]
[1726425794350,0.03865262,59937.0,59936.0,0.501356]
[1726425794576,0.012646,59937.0,59936.0,0.167667]
[1726425795098,0.03263282,59937.0,59936.0,0.000823]
[1726425795342,0.13321584,59937.0,59936.0,0.000823]
[1726425795569,0.16320266,59937.0,59936.0,0.000823]
[1726425795796,0.16320266,59937.0,59936.0,0.167667]
[1726425796023,0.15420266,59937.0,59936.0,0.167667]
[1726425796268,0.15720266,59937.0,59936.0,0.167667]
[1726425796518,0.15820266,59937.0,59936.0,0.167667]
[1726425796751,0.15820266,59937.0,59936.0,0.501356]
[1726425797247,0.03163282,59937.0,59936.0,0.501356]
[1726425798692,0.03163282,59937.0,59936.0,0.167667]
[1726425798944,0.005646,59937.0,59936.0,0.000823]
[1726425799202,0.03163282,59937.0,59936.0,0.000823]
[1726425799423,0.03163282,59937.0,59936.0,0.167667]
[1726425799957,0.03163282,59937.0,59936.0,0.501356]
[1726425800619,0.03063282,59937.0,59936.0,0.501356]
[1726425800840,0.02763282,59937.0,59936.0,0.167667]
[1726425801071,0.03163282,59937.0,59936.0,0.167667]
[1726425801505,0.02863282,59937.0,59936.0,0.167667]
[1726425801969,0.03063282,59937.0,59936.0,0.501356]
[1726425802896,0.004646,59937.0,59936.0,0.501356]
[1726425803121,0.03063282,59937.0,59936.0,0.501356]
[1726425803396,0.004646,59937.0,59936.0,0.501356]
[1726425803620,0.03063282,59937.0,59936.0,0.501356]
[1726425803847,0.004646,59937.0,59936.0,0.501356]
[1726425804077,0.03063282,59937.0,59936.0,0.501356]
[1726425804309,0.004646,59937.0,59936.0,0.501356]
[1726425804534,0.03063839,59937.0,59936.0,0.501356]
[1726425804780,0.004646,59937.0,59936.0,0.501356]
[1726425805033,0.03063839,59937.0,59936.0,0.501356]
[1726425805254,0.004646,59937.0,59936.0,0.501356]
[1726425805470,0.03063839,59937.0,59936.0,0.501356]
[1726425805704,0.004646,59937.0,59936.0,0.501356]
[1726425805937,0.03082214,59937.0,59936.0,0.501356]
[1726425806168,0.004646,59937.0,59936.0,0.167667]
[1726425806401,0.03082277,59937.0,59936.0,0.167667]
[1726425806630,0.004646,59937.0,59936.0,0.167667]
[1726425807239,0.004646,59937.0,59936.0,0.000823]
[1726425807372,0.03082277,59937.0,59936.0,0.000823]
[1726425807612,0.004646,59937.0,59936.0,0.167667]
[1726425807844,0.03082277,59937.0,59936.0,0.167667]
[1726425808075,0.004646,59937.0,59936.0,0.167667]
[1726425808305,0.03063882,59937.0,59936.0,0.167667]
[1726425808533,0.004646,59937.0,59936.0,0.167667]
[1726425808757,0.03063882,59937.0,59936.0,0.167667]
[1726425808974,0.004646,59937.0,59936.0,0.167667]
[1726425809205,0.03063882,59937.0,59936.0,0.167667]
[1726425809435,0.004646,59937.0,59936.0,0.167667]
[1726425809667,0.03063882,59937.0,59936.0,0.501356]
[1726425809896,0.004646,59937.0,59936.0,0.501356]
[1726425810136,0.03063882,59937.0,59936.0,0.501356]
[1726425810361,0.004646,59937.0,59936.0,0.501356]
[1726425810821,0.03063882,59937.0,59936.0,0.501356]
[1726425811084,0.004646,59937.0,59936.0,0.167667]
[1726425811342,0.03063882,59937.0,59936.0,0.501356]
[1726425811589,0.004646,59937.0,59936.0,0.501356]
[1726425811843,0.03063882,59937.0,59936.0,0.000823]
[1726425812087,0.004646,59937.0,59936.0,0.000823]
[1726425812325,0.03063882,59937.0,59936.0,0.000823]
[1726425812549,0.004646,59937.0,59936.0,0.167667]
[1726425812791,0.03063882,59937.0,59936.0,0.167667]
[1726425813247,0.19747982,59937.0,59936.0,0.000823]
[1726425813763,0.03063882,59937.0,59936.0,0.000823]
[1726425814465,0.19747982,59937.0,59936.0,0.000823]
[1726425814705,0.03063882,59937.0,59936.0,0.000823]
[1726425815170,0.19747982,59937.0,59936.0,0.000823]
[1726425815413,0.53116282,59937.0,59936.0,0.000823]
[1726425815650,0.91643227,59937.0,59936.0,0.000823]
[1726425815892,1.19852882,59937.0,59936.0,0.000823]
[1726425816379,1.06084684,59932.0,59931.0,0.000824]
[1726425816615,1.65704151,59932.0,59931.0,0.000824]
[1726425816851,1.60803511,59932.0,59931.0,0.000824]
[1726425817337,0.166891,59919.0,59918.0,0.0028867]
[1726425817581,0.29346084,59919.0,59918.0,0.0028867]
[1726425817822,0.19284337,59919.0,59918.0,0.0028867]
[1726425818067,0.52662637,59919.0,59918.0,0.0028867]
[1726425818634,0.02595237,59919.0,59918.0,0.0028867]
[1726425819088,0.166886,59921.0,59918.0,0.0028867]
[1726425819331,0.333751,59925.0,59918.0,0.1697807]
[1726425819332,0.02895509,59919.0,59918.0,0.1697807]
[1726425819573,0.001,59919.0,59918.0,0.0028867]
[1726425819800,0.02694175,59919.0,59918.0,0.0028867]
[1726425820033,0.02694175,59919.0,59918.0,0.1697807]
[1726425821241,0.03094175,59919.0,59918.0,0.1697807]
[1726425821747,0.02794175,59919.0,59918.0,0.0028867]
[1726425821961,0.02694175,59919.0,59918.0,0.1697807]
[1726425822186,0.32040259,59919.0,59918.0,0.0038867]
[1726425822683,1.17446859,59919.0,59918.0,0.0028867]
[1726425822936,1.17546859,59919.0,59918.0,0.0028867]
[1726425823188,1.17446859,59919.0,59918.0,0.0028867]
[1726425824177,1.24087043,59919.0,59918.0,0.0028867]
[1726425824628,1.24387043,59919.0,59918.0,0.0028867]
[1726425825326,1.27005652,59919.0,59918.0,0.0028867]
[1726425825555,1.27005652,59919.0,59918.0,0.0037097]
[1726425826039,1.27205652,59919.0,59918.0,0.0037097]
[1726425826319,1.27005652,59919.0,59918.0,0.0037097]
[1726425834080,1.60583952,59919.0,59918.0,0.0037097]
[1726425835777,1.61604611,59919.0,59918.0,0.0037097]
[1726425836235,1.61404611,59919.0,59918.0,0.0037097]
[1726425836513,0.002,59911.0,59903.0,0.4665]
[1726425836792,0.80637168,59913.0,59900.0,0.0039592]
[1726425836793,0.500826,59901.0,59900.0,0.0039592]
[1726425837051,0.83471,59901.0,59900.0,0.0039592]
[1726425837295,1.19186985,59901.0,59900.0,0.0039592]
[1726425837563,1.79223502,59901.0,59900.0,0.0039592]
[1726425837865,1.80114153,59901.0,59900.0,0.0039592]
[1726425838285,0.63054753,59901.0,59898.0,0.0031879]
[1726425838515,1.268632,59899.0,59898.0,0.0031879]
[1726425839020,1.29191057,59899.0,59898.0,0.0031879]
[1726425839519,1.29191057,59899.0,59898.0,0.00249629]
[1726425839753,1.31810616,59899.0,59898.0,0.00249629]
[1726425840259,0.98421116,59899.0,59898.0,0.00249629]
[1726425840515,0.55031616,59899.0,59898.0,0.00249629]
[1726425841044,0.56431616,59899.0,59898.0,0.00249629]
[1726425841287,0.57831616,59899.0,59898.0,0.00249629]
[1726425841517,0.56431616,59899.0,59898.0,0.00249629]
[1726425842116,0.84736742,59899.0,59893.0,0.000823]
[1726425842377,1.46170168,59894.0,59893.0,0.000823]
[1726425842882,1.71328126,59894.0,59893.0,0.000823]
[1726425843099,1.71528126,59894.0,59893.0,0.000823]